fUST/lending_fUST_20250424
["ID","MTS","AMOUNT","RATE_DAILY","PERIOD"]
[358785267,1745424642958,-500.0,0.00019178,2]
[358785268,1745424642967,-500.0,0.00019178,2]
[358785269,1745424642976,-216.26,0.00019178,2]
[358785270,1745424642985,-500.0,0.00019178,2]
[358785271,1745424642995,-504.5686658,0.00019178,2]
[358785272,1745424643004,-500.0,0.00019178,2]
[358785273,1745424643014,-500.0,0.00019178,2]
[358785274,1745424643024,-271.49990411,0.00019178,2]
[358785275,1745424643034,-500.0,0.00019178,2]
[358785276,1745424643044,-500.0,0.00019178,2]
[358785277,1745424643053,-500.0,0.00019178,2]
[358785278,1745424643063,-500.0,0.00019178,2]
[358785279,1745424643072,-151.0,0.00019178,2]
[358785280,1745424643081,-500.0,0.00019178,2]
[358785281,1745424643091,-500.0,0.00019178,2]
[358785282,1745424643100,-500.0,0.00019178,2]
[358785283,1745424643110,-500.0,0.00019178,2]
[358785284,1745424643120,-500.0,0.00019178,2]
[358785285,1745424643130,-151.0,0.00019178,2]
[358785286,1745424643139,-500.0,0.00019178,2]
[358785287,1745424643148,-500.0,0.00019178,2]
[358785289,1745424643158,-151.0,0.00019178,2]
[358785290,1745424643167,-1488.16,0.00019178,2]
[358785291,1745424643177,-500.0,0.00019178,2]
[358785292,1745424643186,-500.0,0.00019178,2]
[358785293,1745424643195,-151.0,0.00019178,2]
[358785294,1745424643206,-500.0,0.00019178,2]
[358785295,1745424643216,-500.0,0.00019178,2]
[358785296,1745424643225,-500.0,0.00019178,2]
[358785297,1745424643235,-500.0,0.00019178,2]
[358785298,1745424643244,-500.0,0.00019178,2]
[358785299,1745424643253,-500.0,0.00019178,2]
[358785300,1745424643262,-500.0,0.00019178,2]
[358785301,1745424643272,-500.0,0.00019178,2]
[358785304,1745424643281,-503.53116351,0.00019178,2]
[358785305,1745424643292,-500.0,0.00019178,2]
[358785306,1745424643301,-500.0,0.00019178,2]
[358785308,1745424643310,-500.0,0.00019178,2]
[358785309,1745424643320,-500.0,0.00019178,2]
[358785310,1745424643330,-500.0,0.00019178,2]
[358785311,1745424643339,-500.0,0.00019178,2]
[358785312,1745424643349,-500.0,0.00019178,2]
[358785314,1745424643358,-500.0,0.00019178,2]
[358785315,1745424643368,-500.0,0.00019178,2]
[358785316,1745424643377,-500.0,0.00019178,2]
[358785317,1745424643386,-500.0,0.00019178,2]
[358785318,1745424643396,-500.0,0.00019178,2]
[358785321,1745424643405,-500.0,0.00019178,2]
[358785324,1745424643415,-500.0,0.00019178,2]
[358785326,1745424643424,-500.0,0.00019178,2]
[358785329,1745424643433,-500.0,0.00019178,2]
[358785333,1745424643442,-500.0,0.00019178,2]
[358785336,1745424643452,-1582.69,0.00019178,2]
[358785338,1745424643461,-500.0,0.00019178,2]
[358785340,1745424643471,-500.0,0.00019178,2]
[358785341,1745424643480,-500.0,0.00019178,2]
[358785343,1745424643489,-547.86919917,0.00019178,2]
[358785344,1745424643498,-500.0,0.00019178,2]
[358785345,1745424643508,-500.0,0.00019178,2]
[358785347,1745424643521,-151.0,0.00019178,2]
[358785348,1745424643531,-500.0,0.00019178,2]
[358785349,1745424643541,-300.0,0.00019178,2]
[358785350,1745424643551,-151.0,0.000192,2]
[358785351,1745424643561,-289.8158653,0.00019329,2]
[358785352,1745424643570,-886.94,0.0001945,2]
[358785353,1745424643579,-500.0,0.0001945,2]
[358785354,1745424643589,-2226.39,0.0001945,2]
[358785355,1745424643599,-597.04,0.00019451,2]
[358785356,1745424643608,-597.04,0.00019451,2]
[358785357,1745424643622,-597.04,0.00019451,2]
[358785358,1745424643632,-886.94,0.00019451,2]
[358785359,1745424643642,-886.94,0.00019451,2]
[358785360,1745424643651,-500.0,0.00019451,2]
[358785361,1745424643662,-500.0,0.00019451,2]
[358785362,1745424643671,-2226.39,0.00019451,2]
[358785363,1745424643680,-2226.39,0.00019451,2]
[358785364,1745424643692,-151.0,0.00019452,2]
[358785365,1745424643706,-151.0,0.00019452,2]
[358785366,1745424643716,-500.0,0.00019452,2]
[358785367,1745424643726,-500.0,0.00019452,2]
[358785368,1745424643735,-500.0,0.00019452,2]
[358785369,1745424643745,-500.0,0.00019452,2]
[358785370,1745424643755,-593.12592814,0.00019452,2]
[358785371,1745424643764,-500.0,0.00019452,2]
[358785372,1745424643775,-250.55,0.00019452,2]
[358785373,1745424643785,-500.0,0.00019452,2]
[358785374,1745424643794,-500.0,0.00019452,2]
[358785375,1745424643804,-500.0,0.00019452,2]
[358785376,1745424643814,-500.0,0.00019452,2]
[358785377,1745424643824,-155.67,0.00019452,2]
[358785378,1745424643834,-500.0,0.00019452,2]
[358785379,1745424643843,-500.0,0.00019452,2]
[358785380,1745424643853,-500.0,0.00019452,2]
[358785381,1745424643863,-500.0,0.00019452,2]
[358785382,1745424643874,-500.0,0.00019452,2]
[358785383,1745424643883,-500.0,0.00019452,2]
[358785384,1745424643892,-500.0,0.00019452,2]
[358785385,1745424643902,-500.0,0.00019452,2]
[358785386,1745424643911,-500.0,0.00019452,2]
[358785387,1745424643921,-524.14,0.00019452,2]
[358785388,1745424643931,-466.14,0.00019452,2]
[358785389,1745424643940,-500.0,0.00019452,2]
[358785390,1745424643950,-500.0,0.00019452,2]
[358785391,1745424643962,-500.0,0.00019452,2]
[358785392,1745424643971,-500.0,0.00019452,2]
[358785393,1745424643981,-500.0,0.00019452,2]
[358785394,1745424643991,-500.0,0.00019452,2]
[358785395,1745424644000,-168.05,0.00019452,2]
[358785397,1745424644010,-500.0,0.00019452,2]
[358785399,1745424644019,-403.55,0.00019452,2]
[358785401,1745424644029,-500.0,0.00019452,2]
[358785403,1745424644039,-572.66,0.00019452,2]
[358785405,1745424644048,-500.0,0.00019452,2]
[358785407,1745424644058,-505.98,0.00019452,2]
[358785409,1745424644068,-500.0,0.00019452,2]
[358785411,1745424644078,-500.0,0.00019452,2]
[358785413,1745424644087,-500.0,0.00019452,2]
[358785415,1745424644097,-500.0,0.00019452,2]
[358785417,1745424644107,-500.0,0.00019452,2]
[358785419,1745424644117,-500.0,0.00019452,2]
[358785421,1745424644127,-500.0,0.00019452,2]
[358785423,1745424644137,-500.0,0.00019452,2]
[358785425,1745424644146,-500.0,0.00019452,2]
[358785427,1745424644156,-150.28,0.00019452,2]
[358785429,1745424644166,-600.05,0.00019452,2]
[358785431,1745424644176,-283.56348605,0.00019452,2]
[358785433,1745424644186,-500.0,0.00019452,2]
[358785435,1745424644196,-500.0,0.00019452,2]
[358785437,1745424644207,-500.0,0.00019452,2]
[358785439,1745424644217,-522.87,0.00019452,2]
[358785440,1745424644227,-500.0,0.00019452,2]
[358785441,1745424644236,-500.0,0.00019452,2]
[358785442,1745424644246,-500.0,0.00019452,2]
[358785443,1745424644256,-500.0,0.00019452,2]
[358785444,1745424644265,-205.58,0.00019452,2]
[358785445,1745424644275,-510.96,0.00019452,2]
[358785446,1745424644284,-1022.75,0.00019452,2]
[358785447,1745424644294,-500.0,0.00019452,2]
[358785448,1745424644304,-500.0,0.00019452,2]
[358785449,1745424644313,-500.0,0.00019452,2]
[358785450,1745424644323,-188.25,0.00019452,2]
[358785451,1745424644332,-535.17,0.00019452,2]
[358785452,1745424644341,-157.04,0.00019452,2]
[358785453,1745424644350,-225.36507192,0.00019452,2]
[358785454,1745424644360,-253.56,0.00019452,2]
[358785455,1745424644369,-827.33,0.00019452,2]
[358785456,1745424644379,-500.0,0.00019452,2]
[358785457,1745424644389,-426.97,0.00019452,2]
[358785458,1745424644398,-500.0,0.00019452,2]
[358785459,1745424644407,-435.39,0.00019452,2]
[358785460,1745424644417,-686.98,0.00019452,2]
[358785461,1745424644426,-500.0,0.00019452,2]
[358785462,1745424644436,-500.0,0.00019452,2]
[358785463,1745424644446,-354.16,0.00019452,2]
[358785464,1745424644456,-500.0,0.00019452,2]
[358785465,1745424644466,-500.0,0.00019452,2]
[358785466,1745424644476,-500.0,0.00019452,2]
[358785467,1745424644487,-630.79,0.00019452,2]
[358785468,1745424644496,-679.56,0.00019452,2]
[358785469,1745424644505,-500.0,0.00019452,2]
[358785470,1745424644515,-500.0,0.00019452,2]
[358785471,1745424644525,-500.0,0.00019452,2]
[358785472,1745424644534,-500.0,0.00019452,2]
[358785473,1745424644544,-500.0,0.00019452,2]
[358785474,1745424644554,-500.0,0.00019452,2]
[358785475,1745424644565,-500.0,0.00019452,2]
[358785476,1745424644577,-500.0,0.00019452,2]
[358785478,1745424644586,-500.0,0.00019452,2]
[358785479,1745424644596,-500.0,0.00019452,2]
[358785481,1745424644606,-500.0,0.00019452,2]
[358785483,1745424644618,-500.0,0.00019452,2]
[358785485,1745424644627,-500.0,0.00019452,2]
[358785487,1745424644637,-500.0,0.00019452,2]
[358785489,1745424644647,-603.17,0.00019452,2]
[358785491,1745424644657,-500.0,0.00019452,2]
[358785493,1745424644667,-399.96,0.00019452,2]
[358785495,1745424644677,-257.81,0.00019452,2]
[358785497,1745424644687,-500.0,0.00019452,2]
[358785499,1745424644699,-500.0,0.00019452,2]
[358785500,1745424644713,-500.0,0.00019452,2]
[358785501,1745424644722,-500.0,0.00019452,2]
[358785502,1745424644732,-500.0,0.00019452,2]
[358785503,1745424644742,-500.0,0.00019452,2]
[358785504,1745424644752,-1607.31,0.00019452,2]
[358785505,1745424644762,-500.0,0.00019452,2]
[358785506,1745424644772,-500.0,0.00019452,2]
[358785507,1745424644782,-500.0,0.00019452,2]
[358785508,1745424644792,-500.0,0.00019452,2]
[358785509,1745424644802,-500.0,0.00019452,2]
[358785510,1745424644812,-500.0,0.00019452,2]
[358785511,1745424644822,-500.0,0.00019452,2]
[358785512,1745424644831,-500.0,0.00019452,2]
[358785513,1745424644842,-500.0,0.00019452,2]
[358785514,1745424644851,-500.0,0.00019452,2]
[358785515,1745424644861,-500.0,0.00019452,2]
[358785516,1745424645058,-500.0,0.00019452,2]
[358785517,1745424645070,-500.0,0.00019452,2]
[358785518,1745424645080,-500.0,0.00019452,2]
[358785519,1745424645090,-500.0,0.00019452,2]
[358785520,1745424645100,-500.0,0.00019452,2]
[358785521,1745424645109,-546.67,0.00019452,2]
[358785522,1745424645120,-553.58,0.00019452,2]
[358785523,1745424645130,-1488.16,0.00019452,2]
[358785524,1745424645140,-500.0,0.00019452,2]
[358785525,1745424645150,-500.0,0.00019452,2]
[358785526,1745424645160,-231.6,0.00019452,2]
[358785527,1745424645170,-500.0,0.00019452,2]
[358785528,1745424645180,-500.0,0.00019452,2]
[358785529,1745424645190,-500.0,0.00019452,2]
[358785530,1745424645200,-384.75,0.00019452,2]
[358785531,1745424645212,-500.0,0.00019452,2]
[358785532,1745424645222,-1582.69,0.00019452,2]
[358785533,1745424645231,-212.70290137,0.00019452,2]
[358785534,1745424645242,-630.35753697,0.00019473,2]
[358785535,1745424645252,-500.0,0.00019473,2]
[358785536,1745424645262,-500.0,0.00019473,2]
[358785537,1745424645271,-529.06969762,0.00019473,2]
[358785538,1745424645281,-500.0,0.00019473,2]
[358785539,1745424645290,-500.0,0.00019473,2]
[358785540,1745424645300,-597.04,0.00019528,2]
[358785541,1745424645310,-151.0,0.000197,2]
[358785542,1745424645320,-597.04,0.00019725,2]
[358785543,1745424645332,-597.04,0.00019725,2]
[358785544,1745424645341,-198.0,0.00019726,2]
[358785545,1745424645351,-151.65457019,0.00019726,2]
[358785546,1745424645361,-500.0,0.00019726,2]
[358785547,1745424645371,-500.0,0.00019726,2]
[358785548,1745424645381,-500.0,0.00019726,2]
[358785549,1745424645391,-352.05,0.00019726,2]
[358785550,1745424645401,-619.62,0.00019726,2]
[358785551,1745424645411,-500.0,0.00019726,2]
[358785552,1745424645420,-500.0,0.00019726,2]
[358785553,1745424645430,-500.0,0.00019726,2]
[358785554,1745424645440,-500.0,0.00019726,2]
[358785555,1745424645450,-500.0,0.00019726,2]
[358785556,1745424645462,-500.0,0.00019726,2]
[358785557,1745424645471,-500.0,0.00019726,2]
[358785558,1745424645481,-500.0,0.00019726,2]
[358785559,1745424645491,-500.0,0.00019726,2]
[358785560,1745424645501,-500.0,0.00019726,2]
[358785561,1745424645511,-500.0,0.00019726,2]
[358785562,1745424645520,-500.0,0.00019726,2]
[358785563,1745424645530,-500.0,0.00019726,2]
[358785564,1745424645540,-480.64,0.00019726,2]
[358785565,1745424645550,-500.0,0.00019726,2]
[358785566,1745424645560,-500.0,0.00019726,2]
[358785567,1745424645569,-500.0,0.00019726,2]
[358785568,1745424645579,-500.0,0.00019726,2]
[358785569,1745424645588,-376.86,0.00019726,2]
[358785570,1745424645598,-500.0,0.00019726,2]
[358785571,1745424645608,-500.0,0.00019726,2]
[358785572,1745424645622,-500.0,0.00019726,2]
[358785573,1745424645632,-500.0,0.00019726,2]
[358785574,1745424645642,-510.96,0.00019726,2]
[358785575,1745424645652,-1022.75,0.00019726,2]
[358785576,1745424645662,-329.63,0.00019726,2]
[358785577,1745424645672,-827.33,0.00019726,2]
[358785578,1745424645682,-500.0,0.00019726,2]
[358785579,1745424645691,-686.98,0.00019726,2]
[358785580,1745424645701,-211.35,0.00019726,2]
[358785581,1745424645714,-500.0,0.00019726,2]
[358785582,1745424645724,-500.0,0.00019726,2]
[358785583,1745424645735,-679.56,0.00019726,2]
[358785584,1745424645744,-500.0,0.00019726,2]
[358785585,1745424645755,-500.0,0.00019726,2]
[358785586,1745424645764,-500.0,0.00019726,2]
[358785587,1745424645774,-342.0253456,0.00019726,2]
[358785588,1745424645784,-500.0,0.00019726,2]
[358785589,1745424645794,-500.0,0.00019726,2]
[358785590,1745424645804,-500.0,0.00019726,2]
[358785591,1745424645814,-500.0,0.00019726,2]
[358785592,1745424645824,-500.0,0.00019726,2]
[358785593,1745424645835,-500.0,0.00019726,2]
[358785594,1745424645844,-500.0,0.00019726,2]
[358785595,1745424645854,-1607.31,0.00019726,2]
[358785596,1745424645864,-500.0,0.00019726,2]
[358785597,1745424645873,-500.0,0.00019726,2]
[358785598,1745424645883,-500.0,0.00019726,2]
[358785599,1745424645893,-500.0,0.00019726,2]
[358785600,1745424645902,-500.0,0.00019726,2]
[358785601,1745424645912,-273.56,0.00019726,2]
[358785602,1745424645922,-500.0,0.00019726,2]
[358785603,1745424645931,-162.5,0.00019726,2]
[358785604,1745424645941,-153.65,0.00019726,2]
[358785605,1745424645950,-568.01228692,0.00019726,2]
[358785606,1745424645962,-500.0,0.00019726,2]
[358785607,1745424645972,-1488.16,0.00019726,2]
[358785608,1745424645982,-500.0,0.00019726,2]
[358785609,1745424645991,-500.0,0.00019726,2]
[358785610,1745424646001,-500.0,0.00019726,2]
[358785611,1745424646011,-500.0,0.00019726,2]
[358785612,1745424646020,-1582.69,0.00019726,2]
[358785613,1745424646031,-886.94,0.00019735,2]
[358785614,1745424646040,-500.0,0.00019735,2]
[358785615,1745424646050,-2226.39,0.00019735,2]
[358785616,1745424646059,-214.25355633,0.00019831,2]
[358785617,1745424646070,-605.0,0.00019905,2]
[358785618,1745424646080,-597.04,0.00019999,2]
[358785619,1745424646089,-500.0,0.0002,2]
[358785620,1745424646099,-500.0,0.0002,2]
[358785621,1745424646109,-500.0,0.0002,2]
[358785622,1745424646118,-500.0,0.0002,2]
[358785623,1745424646128,-471.77,0.0002,2]
[358785624,1745424646137,-500.0,0.0002,2]
[358785625,1745424646147,-500.0,0.0002,2]
[358785626,1745424646156,-500.0,0.0002,2]
[358785627,1745424646166,-500.0,0.0002,2]
[358785628,1745424646175,-500.0,0.0002,2]
[358785629,1745424646185,-500.0,0.0002,2]
[358785630,1745424646194,-500.0,0.0002,2]
[358785631,1745424646205,-500.0,0.0002,2]
[358785632,1745424646214,-500.0,0.0002,2]
[358785634,1745424646224,-500.0,0.0002,2]
[358785635,1745424646233,-500.0,0.0002,2]
[358785636,1745424646243,-282.8658614,0.0002,2]
[358785637,1745424646253,-500.0,0.0002,2]
[358785638,1745424646263,-500.0,0.0002,2]
[358785639,1745424646273,-500.0,0.0002,2]
[358785640,1745424646283,-500.0,0.0002,2]
[358785641,1745424646292,-510.96,0.0002,2]
[358785642,1745424646302,-1022.75,0.0002,2]
[358785645,1745424646312,-827.33,0.0002,2]
[358785648,1745424646322,-500.0,0.0002,2]
[358785650,1745424646332,-686.98,0.0002,2]
[358785652,1745424646342,-181.56,0.0002,2]
[358785654,1745424646352,-540.2,0.0002,2]
[358785656,1745424646362,-679.56,0.0002,2]
[358785658,1745424646372,-500.0,0.0002,2]
[358785660,1745424646384,-500.0,0.0002,2]
[358785662,1745424646395,-609.82,0.0002,2]
[358785665,1745424646406,-500.0,0.0002,2]
[358785667,1745424646419,-500.0,0.0002,2]
[358785669,1745424646429,-500.0,0.0002,2]
[358785670,1745424646439,-500.0,0.0002,2]
[358785671,1745424646449,-500.0,0.0002,2]
[358785672,1745424646460,-500.0,0.0002,2]
[358785673,1745424646470,-1607.31,0.0002,2]
[358785674,1745424646479,-500.0,0.0002,2]
[358785675,1745424646489,-500.0,0.0002,2]
[358785676,1745424646499,-182.89,0.0002,2]
[358785677,1745424646509,-500.0,0.0002,2]
[358785678,1745424646519,-500.0,0.0002,2]
[358785679,1745424646528,-1488.16,0.0002,2]
[358785680,1745424646538,-500.0,0.0002,2]
[358785681,1745424646547,-500.0,0.0002,2]
[358785682,1745424646557,-500.0,0.0002,2]
[358785683,1745424646567,-278.45,0.0002,2]
[358785684,1745424646578,-1582.69,0.0002,2]
[358785685,1745424646587,-500.0,0.00020139,2]
[358785686,1745424646597,-500.0,0.00020139,2]
[358785687,1745424646607,-500.0,0.00020139,2]
[358785688,1745424646622,-500.0,0.00020139,2]
[358785689,1745424646631,-597.04,0.00020272,2]
[358785690,1745424646643,-597.04,0.00020272,2]
[358785691,1745424646654,-597.04,0.00020272,2]
[358785692,1745424646664,-597.04,0.00020272,2]
[358785693,1745424646673,-597.17579057,0.00020272,2]
[358785694,1745424646683,-886.94,0.00020272,2]
[358785695,1745424646695,-500.0,0.00020272,2]
[358785696,1745424646705,-2226.39,0.00020272,2]
[358785697,1745424646715,-500.0,0.00020273,2]
[358785698,1745424646724,-159.6811405,0.00020273,2]
[358785699,1745424646734,-500.0,0.00020273,2]
[358785700,1745424646744,-500.0,0.00020273,2]
[358785701,1745424646753,-500.0,0.00020273,2]
[358785702,1745424646763,-500.0,0.00020273,2]
[358785703,1745424646772,-500.0,0.00020273,2]
[358785704,1745424646782,-500.0,0.00020273,2]
[358785705,1745424646793,-500.0,0.00020273,2]
[358785706,1745424646802,-500.0,0.00020273,2]
[358785707,1745424646811,-500.0,0.00020273,2]
[358785708,1745424646821,-500.0,0.00020273,2]
[358785709,1745424646831,-500.0,0.00020273,2]
[358785710,1745424646840,-500.0,0.00020273,2]
[358785711,1745424646850,-500.0,0.00020273,2]
[358785712,1745424646859,-500.0,0.00020273,2]
[358785713,1745424646868,-500.0,0.00020273,2]
[358785714,1745424646878,-500.0,0.00020273,2]
[358785715,1745424646888,-500.0,0.00020273,2]
[358785716,1745424646897,-510.96,0.00020273,2]
[358785717,1745424646906,-1022.75,0.00020273,2]
[358785718,1745424646916,-827.33,0.00020273,2]
[358785719,1745424646925,-500.0,0.00020273,2]
[358785720,1745424646935,-686.98,0.00020273,2]
[358785721,1745424646944,-679.56,0.00020273,2]
[358785722,1745424646953,-500.0,0.00020273,2]
[358785723,1745424646964,-500.0,0.00020273,2]
[358785724,1745424646973,-500.0,0.00020273,2]
[358785725,1745424646983,-500.0,0.00020273,2]
[358785726,1745424646992,-500.0,0.00020273,2]
[358785727,1745424647003,-500.0,0.00020273,2]
[358785728,1745424647012,-231.4,0.00020273,2]
[358785729,1745424647022,-500.0,0.00020273,2]
[358785730,1745424647031,-1607.31,0.00020273,2]
[358785731,1745424647040,-543.41,0.00020273,2]
[358785732,1745424647050,-500.0,0.00020273,2]
[358785733,1745424647059,-500.0,0.00020273,2]
[358785734,1745424647069,-500.0,0.00020273,2]
[358785735,1745424647079,-1488.16,0.00020273,2]
[358785736,1745424647088,-500.0,0.00020273,2]
[358785737,1745424647097,-500.0,0.00020273,2]
[358785738,1745424647107,-500.0,0.00020273,2]
[358785739,1745424647116,-1582.69,0.00020273,2]
[358785740,1745424647126,-151.0,0.000203,3]
[358785741,1745424647136,-10297.15282177,0.000205,2]
[358785742,1745424647145,-500.0,0.00020547,2]
[358785743,1745424647155,-500.0,0.00020547,2]
[358785744,1745424647164,-604.65,0.00020547,2]
[358785745,1745424647174,-294.780905,0.00020547,2]
[358785746,1745424647185,-500.0,0.00020547,2]
[358785747,1745424647195,-500.0,0.00020547,2]
[358785748,1745424647204,-500.0,0.00020547,2]
[358785749,1745424647214,-500.0,0.00020547,2]
[358785750,1745424647223,-500.0,0.00020547,2]
[358785751,1745424647233,-500.0,0.00020547,2]
[358785752,1745424647242,-500.0,0.00020547,2]
[358785753,1745424647252,-500.0,0.00020547,2]
[358785754,1745424647261,-500.0,0.00020547,2]
[358785755,1745424647271,-500.0,0.00020547,2]
[358785756,1745424647280,-500.0,0.00020547,2]
[358785757,1745424647290,-500.0,0.00020547,2]
[358785758,1745424647300,-500.0,0.00020547,2]
[358785759,1745424647311,-500.0,0.00020547,2]
[358785761,1745424647321,-510.96,0.00020547,2]
[358785763,1745424647331,-1022.75,0.00020547,2]
[358785765,1745424647342,-827.33,0.00020547,2]
[358785766,1745424647352,-500.0,0.00020547,2]
[358785767,1745424647361,-686.98,0.00020547,2]
[358785768,1745424647371,-679.56,0.00020547,2]
[358785769,1745424647380,-500.0,0.00020547,2]
[358785770,1745424647390,-500.0,0.00020547,2]
[358785771,1745424647399,-433.96,0.00020547,2]
[358785772,1745424647409,-500.0,0.00020547,2]
[358785773,1745424647418,-500.0,0.00020547,2]
[358785774,1745424647428,-500.0,0.00020547,2]
[358785775,1745424647438,-500.0,0.00020547,2]
[358785776,1745424647447,-1607.31,0.00020547,2]
[358785777,1745424647458,-500.0,0.00020547,2]
[358785778,1745424647516,-500.0,0.00020547,2]
[358785779,1745424647527,-1488.16,0.00020547,2]
[358785780,1745424647537,-500.0,0.00020547,2]
[358785781,1745424647547,-500.0,0.00020547,2]
[358785782,1745424647557,-500.0,0.00020547,2]
[358785783,1745424647567,-1582.69,0.00020547,2]
[358785784,1745424647577,-214.25355633,0.00020585,2]
[358785785,1745424647587,-10297.15282159,0.00020693,2]
[358785786,1745424647597,-886.94,0.00020699,2]
[358785787,1745424647606,-500.0,0.00020699,2]
[358785788,1745424647620,-2226.39,0.00020699,2]
[358785789,1745424647630,-2995.78,0.000207,2]
[358785790,1745424647639,-886.94,0.0002082,2]
[358785791,1745424647649,-500.0,0.0002082,2]
[358785792,1745424647659,-2226.39,0.0002082,2]
[358785793,1745424647668,-500.0,0.00020821,2]
[358785794,1745424647678,-500.0,0.00020821,2]
[358785795,1745424647687,-500.0,0.00020821,2]
[358785796,1745424647699,-530.12571232,0.00020821,2]
[358785797,1745424647710,-500.0,0.00020821,2]
[358785798,1745424647720,-500.0,0.00020821,2]
[358785799,1745424647729,-338.63,0.00020821,2]
[358785800,1745424647739,-500.0,0.00020821,2]
[358785801,1745424647749,-328.46067464,0.00020821,2]
[358785802,1745424647759,-500.0,0.00020821,2]
[358785804,1745424647769,-500.0,0.00020821,2]
[358785806,1745424647778,-500.0,0.00020821,2]
[358785808,1745424647788,-500.0,0.00020821,2]
[358785810,1745424647797,-500.0,0.00020821,2]
[358785812,1745424647807,-338.54661237,0.00020821,2]
[358785817,1745424647938,-161.45338763,0.00020821,2]
[358785818,1745424647948,-462.97100057,0.00020821,2]
[358785819,1745424647959,-510.96,0.00020821,2]
[358785820,1745424647968,-1022.75,0.00020821,2]
[358785821,1745424647978,-771.8656118,0.00020821,2]
[358785822,1745424647990,-55.4643882,0.00020821,2]
[358785823,1745424648000,-500.0,0.00020821,2]
[358785824,1745424648010,-686.98,0.00020821,2]
[358785826,1745424648019,-679.56,0.00020821,2]
[358785828,1745424648029,-500.0,0.00020821,2]
[358785830,1745424648039,-500.0,0.00020821,2]
[358785831,1745424648049,-500.0,0.00020821,2]
[358785832,1745424648058,-500.0,0.00020821,2]
[358785833,1745424648068,-12.9200444,0.00020821,2]
[358785834,1745424649915,-500.0,0.00019178,2]
[358785835,1745424649925,-500.0,0.00019178,2]
[358785836,1745424649934,-500.0,0.00019178,2]
[358785837,1745424649944,-500.0,0.00019452,2]
[358785838,1745424649954,-487.0799556,0.00020821,2]
[358785839,1745424649965,-46.35589381,0.00020821,2]
[358785840,1745424649977,-453.64410619,0.00020821,2]
[358785841,1745424649986,-1477.07189381,0.00020821,2]
[358785842,1745424650114,-500.0,0.00019074,2]
[358785843,1745424650124,-500.0,0.00019074,2]
[358785844,1745424650134,-500.0,0.00019074,2]
[358785845,1745424650144,-500.0,0.00019074,2]
[358785846,1745424650154,-500.0,0.00019074,2]
[358785847,1745424650163,-644.73085681,0.00019074,2]
[358785848,1745424650173,-500.0,0.00019178,2]
[358785849,1745424650183,-615.73,0.00019452,2]
[358785850,1745424650192,-516.25236514,0.00019452,2]
[358785851,1745424650202,-130.23810619,0.00020821,2]